[Event "FIDE World Rapid-ch Open 2018"]
[White "Tari, Aryan"]
[Black "Artemiev, Vladislav"]
[Site "St. Petersburg"]
[Round "1.3"]
[Annotator "ChessBase"]
[Result "0-1"]
[Date "2018.12.26"]
[WhiteElo "2620"]
[BlackElo "2709"]
[PlyCount "120"]
[TimeControl "900+10"]

1. e4 {[%emt 0:0:0]} c5 {[%emt 0:0:0]} 2. Nf3 {[%emt 0:0:0]} d6 {[%emt 0:0:0]} 3. Bb5+ {[%emt 0:0:21]} Bd7 {[%emt 0:0:19]} 4. c4 {[%emt 0:0:2]} Nc6 {[%emt 0:0:2]} 5. d4 {[%emt 0:0:12]} cxd4 {[%emt 0:0:3]} 6. Nxd4 {[%emt 0:0:2]
} g6 {[%emt 0:0:2]} 7. Nc3 {[%emt 0:0:10]} Bg7 {[%emt 0:0:2]
} 8. Be3 {[%emt 0:0:2]} Nf6 {[%emt 0:0:3]} 9. f3 {[%emt 0:0:51]} 0-0 {[%emt 0:0:8]
} 10. Bxc6 {[%emt 0:0:47]} bxc6 {[%emt 0:0:4]} 11. 0-0 {[%emt 0:0:2]
} e5 {[%emt 0:0:18]} 12. Nde2 {[%emt 0:0:23]} Be6 {[%emt 0:0:0]} 13. Qa4 {[%emt 0:0:38]} d5 {[%emt 0:0:4]} 14. cxd5 {[%emt 0:0:19]} cxd5 {[%emt 0:0:3]} 15. exd5 {[%emt 0:0:2]} Nxd5 {[%emt 0:0:2]} 16. Nxd5 {[%emt 0:1:2]} Qxd5 {[%emt 0:0:3]} 17. Rfd1 {[%emt 0:0:2]} Qb7 {[%emt 0:0:0]} 18. Rd2 {[%emt 0:0:5]} a5 {[%emt 0:3:23]} 19. Nc3 {[%emt 0:1:38]} Qb4 {[%emt 0:0:15]} 20. Qxb4 {[%emt 0:2:0]} axb4 {[%emt 0:0:3]} 21. Nd5 {[%emt 0:0:1]
} Bxd5 {[%emt 0:2:44]} 22. Rxd5 {[%emt 0:0:1]} e4 {[%emt 0:0:0]} 23. Bd4 {[%emt 0:2:26]} exf3 {[%emt 0:0:4]} 24. Bxg7 {[%emt 0:0:11]} Kxg7 {[%emt 0:0:2]} 25. gxf3 {[%emt 0:0:2]} Rfc8 {[%emt 0:0:7]} 26. Rd2 {[%emt 0:0:31]
} Ra5 {[%emt 0:0:24]} 27. Kf2 {[%emt 0:0:25]} Rh5 {[%emt 0:0:0]} 28. Kg3 {[%emt 0:0:28]} Rg5+ {[%emt 0:0:2]} 29. Kf2 {[%emt 0:0:2]} Rc4 {[%emt 0:0:2]} 30. a4 {[%emt 0:1:26]} bxa3 {[%emt 0:0:30]} 31. bxa3 {[%emt 0:0:6]
} Rh4 {[%emt 0:0:33]} 32. Kf1 {[%emt 0:0:33]} Ra4 {[%emt 0:0:0]} 33. Re2 {[%emt 0:0:33]} Kf6 {[%emt 0:0:43]} 34. Rg2 {[%emt 0:1:3]} Rf5 {[%emt 0:0:44]} 35. Kf2 {[%emt 0:0:52]} h5 {[%emt 0:0:48]} 36. Ke3 {[%emt 0:0:0]} Re5+ {[%emt 0:0:43]} 37. Kf2 {[%emt 0:0:1]} Kf5 {[%emt 0:0:16]} 38. Rgg1 {[%emt 0:0:7]} Kf4 {[%emt 0:1:38]} 39. Rge1 {[%emt 0:0:10]} Rea5 {[%emt 0:1:45]
} 40. Re3 {[%emt 0:0:8]} Kf5 {[%emt 0:0:54]} 41. Rb1 {[%emt 0:0:0]} g5 {[%emt 0:0:11]} 42. Rb4 {[%emt 0:0:40]} Rxa3 {[%emt 0:0:12]} 43. Rxa3 {[%emt 0:0:1]} Rxa3 {[%emt 0:0:1]} 44. h4 {[%emt 0:0:29]} g4 {[%emt 0:0:5]
} 45. Rb5+ {[%emt 0:0:11]} Ke6 {[%emt 0:0:1]} 46. Rb6+ {[%emt 0:0:48]
} Ke7 {[%emt 0:0:2]} 47. Rb7+ {[%emt 0:0:23]} Kf6 {[%emt 0:0:0]} 48. Rb6+ {[%emt 0:0:9]} Kg7 {[%emt 0:0:3]} 49. fxg4 {[%emt 0:0:20]} hxg4 {[%emt 0:0:2]} 50. Rb5 {[%emt 0:0:29]} f6 {[%emt 0:0:48]} 51. Kg2 {[%emt 0:0:13]
} Rf3 {[%emt 0:0:45]} 52. Rb4 {[%emt 0:1:9]} f5 {[%emt 0:0:0]} 53. Rb6 {[%emt 0:0:10]} Rh3 {[%emt 0:0:2]} 54. Rc6 {[%emt 0:0:29]} Rxh4 {[%emt 0:0:9]} 55. Kg3 {[%emt 0:0:1]} Rh3+ {[%emt 0:0:1]} 56. Kf4 {[%emt 0:0:0]
} Rf3+ {[%emt 0:0:1]} 57. Kg5 {[%emt 0:0:1]} Kf7 {[%emt 0:0:0]} 58. Ra6 {[%emt 0:0:29]} g3 {[%emt 0:0:8]} 59. Rf6+ {[%emt 0:0:13]} Ke7 {[%emt 0:0:2]} 60. Rg6 {[%emt 0:0:1]} Rf1 {[%emt 0:0:17]} 0-1

[Event "FIDE World Rapid-ch Open 2018"]
[White "Fedoseev, Vladimir"]
[Black "Tregubov, Pavel V."]
[Site "St. Petersburg"]
[Round "1.4"]
[Annotator "RC"]
[Result "1/2-1/2"]
[Date "2018.12.26"]
[WhiteElo "2719"]
[BlackElo "2592"]
[PlyCount "126"]
[TimeControl "900+10"]

1. e4 {[%emt 0:0:0]} e5 {[%emt 0:0:0]} 2. Nf3 {[%emt 0:0:4]} Nf6 {[%emt 0:0:0]
} 3. Nxe5 {[%emt 0:0:9]} d6 {[%emt 0:0:0]} 4. Nd3 {[%emt 0:0:0]} Nxe4 {[%emt 0:0:3]} 5. Qe2 {[%emt 0:0:2]} Qe7 {[%emt 0:0:14]} 6. Nc3 {[%emt 0:0:2]} Nf6 {[%emt 0:0:35]} 7. b3 {[%emt 0:0:2]} c6 {[%emt 0:0:0]} 8. Bb2 {[%emt 0:0:14]} Qxe2+ {[%emt 0:2:31]} 9. Nxe2 {[%emt 0:0:5]} Be7 {[%emt 0:0:45]} 10. f3 {[%emt 0:0:2]} h5 {[%emt 0:0:46]} 11. h4 {[%emt 0:0:8]
} Na6 {[%emt 0:0:19]} 12. 0-0-0 {[%emt 0:0:22]} Bd7 {[%emt 0:0:0]} 13. g3 {[%emt 0:1:48]} 0-0-0 {[%emt 0:0:6]} 14. Nef4 {[%emt 0:0:23]
} Rde8 {[%emt 0:0:12]} 15. Bh3 {[%emt 0:0:31]} Bd8 {[%emt 0:0:41]} 16. Rde1 {[%emt 0:0:58]} Rxe1+ {[%emt 0:0:58]} 17. Rxe1 {[%emt 0:0:4]} Nc7 {[%emt 0:0:0]} 18. Nf2 {[%emt 0:0:34]} Re8 {[%emt 0:1:48]} 19. Rxe8 {[%emt 0:1:55]} Ncxe8 {[%emt 0:0:2]} 20. Kd1 {[%emt 0:1:23]} g6 {[%emt 0:0:23]} 21. Ke2 {[%emt 0:0:23]
} Bxh3 {[%emt 0:0:27]} 22. N2xh3 {[%emt 0:0:21]} Kd7 {[%emt 0:0:0]} 23. Ng5 {[%emt 0:0:12]} Ke7 {[%emt 0:0:3]} 24. c4 {[%emt 0:0:42]} Bc7 {[%emt 0:0:19]} 25. Ng2 {[%emt 0:1:58]} d5 {[%emt 0:0:29]} 26. f4 {[%emt 0:0:27]
} Ne4 {[%emt 0:1:58]} 27. Nxe4 {[%emt 0:0:22]} dxe4 {[%emt 0:0:0]} 28. Bd4 {[%emt 0:0:9]} a6 {[%emt 0:0:35]} 29. Ne3 {[%emt 0:1:3]} Ke6 {[%emt 0:0:20]} 30. c5 {[%emt 0:0:54]} f6 {[%emt 0:0:50]} 31. d3 {[%emt 0:3:0]
} exd3+ {[%emt 0:0:3]} 32. Kxd3 {[%emt 0:0:2]} Ng7 {[%emt 0:0:0]} 33. Nc4 {[%emt 0:0:13]} Nf5 {[%emt 0:0:23]} 34. Bf2 {[%emt 0:0:1]} Kd5 {[%emt 0:3:37]} 35. b4 {[%emt 0:0:13]} Bd8 {[%emt 0:0:2]} 36. Nd2 {[%emt 0:0:5]
} a5 {[%emt 0:0:29]} 37. a3 {[%emt 0:0:1]} axb4 {[%emt 0:0:0]} 38. axb4 {[%emt 0:0:2]} Ke6 {[%emt 0:0:13]} 39. Kc4 {[%emt 0:0:52]} Ne7 {[%emt 0:0:8]} 40. Nf3 {[%emt 0:0:18]} Nf5 {[%emt 0:0:21]} 41. Ne1 {[%emt 0:0:21]
} Bc7 {[%emt 0:0:4]} 42. Nf3 {[%emt 0:0:13]} Bd8 {[%emt 0:0:0]} 43. Kd3 {[%emt 0:0:4]} Kd5 {[%emt 0:0:6]} 44. Nd2 {[%emt 0:0:3]} g5 {[%emt 0:0:20]} 45. Ne4 {[%emt 0:0:5]} gxf4 {[%emt 0:0:9]} 46. gxf4 {[%emt 0:0:2]
} Ke6 {[%emt 0:0:7]} 47. Nd2 {[%emt 0:0:14]} Ne7 {[%emt 0:0:0]} 48. Nf3 {[%emt 0:0:32]} Nd5 {[%emt 0:0:10]} 49. Nd4+ {[%emt 0:0:1]} Kd7 {[%emt 0:0:6]} 50. Be1 {[%emt 0:0:24]} Nxf4+ {[%emt 0:0:3]} 51. Ke4 {[%emt 0:0:1]
} Ne6 {[%emt 0:0:14]} 52. Nf5 {[%emt 0:0:9]} b6 {[%emt 0:0:0]} 53. cxb6 {[%emt 0:0:4]} Bxb6 {[%emt 0:0:1]} 54. Bc3 {[%emt 0:0:14]} Bd8 {[%emt 0:0:3]} 55. Bb2 {[%emt 0:0:5]} Ke8 {[%emt 0:0:10]} 56. Nd6+ {[%emt 0:0:20]
} Ke7 {[%emt 0:0:7]} 57. Nc4 {[%emt 0:0:7]} Kf7 {[%emt 0:0:0]} 58. Kf5 {[%emt 0:0:9]} Be7 {[%emt 0:0:14]} 59. Bxf6 {[%emt 0:0:25]} Bxf6 {[%emt 0:0:28]} 60. Nd6+ {[%emt 0:0:1]} Ke7 {[%emt 0:0:4]} 61. Nc8+ {[%emt 0:0:1]
} Kf7 {[%emt 0:0:46]} 62. Nd6+ {[%emt 0:0:2]} Ke7 {[%emt 0:0:0]} 63. Nc8+ {[%emt 0:0:1]} Kf7 {[%emt 0:0:11]} 1/2-1/2

[Event "FIDE World Rapid-ch Open 2018"]
[White "Karjakin, Sergey"]
[Black "Yilmaz, Mustafa"]
[Site "St. Petersburg"]
[Round "1.8"]
[Annotator "RC"]
[Result "1-0"]
[Date "2018.12.26"]
[WhiteElo "2753"]
[BlackElo "2636"]
[PlyCount "119"]
[TimeControl "900+10"]

1. e4 {[%emt 0:0:45]} c5 {[%emt 0:0:0]} 2. Nf3 {[%emt 0:0:3]} d6 {[%emt 0:0:0]} 3. d4 {[%emt 0:0:2]} cxd4 {[%emt 0:0:0]} 4. Nxd4 {[%emt 0:0:1]} Nf6 {[%emt 0:0:0]} 5. Nc3 {[%emt 0:0:1]} a6 {[%emt 0:0:0]} 6. Be3 {[%emt 0:0:9]
} e5 {[%emt 0:0:2]} 7. Nf3 {[%emt 0:0:2]} Be7 {[%emt 0:0:23]
} 8. Bc4 {[%emt 0:0:2]} 0-0 {[%emt 0:0:9]} 9. 0-0 {[%emt 0:0:2]} Nc6 {[%emt 0:1:17]
} 10. Re1 {[%emt 0:0:8]} Be6 {[%emt 0:0:30]} 11. Nd5 {[%emt 0:0:0]} Bxd5 {[%emt 0:0:40]} 12. exd5 {[%emt 0:0:7]} b5 {[%emt 0:0:4]} 13. Bf1 {[%emt 0:0:2]} Nb4 {[%emt 0:0:4]} 14. c4 {[%emt 0:0:2]} bxc4 {[%emt 0:0:29]
} 15. Bxc4 {[%emt 0:0:2]} Qa5 {[%emt 0:2:47]} 16. Bd2 {[%emt 0:0:8]
} Qb6 {[%emt 0:1:22]} 17. Nh4 {[%emt 0:3:56]} g6 {[%emt 0:0:0]} 18. Nf3 {[%emt 0:0:32]} Qb7 {[%emt 0:2:31]} 19. b3 {[%emt 0:2:52]} Nbxd5 {[%emt 0:0:11]} 20. Bh6 {[%emt 0:0:20]} Rfe8 {[%emt 0:0:45]} 21. Ng5 {[%emt 0:0:7]
} Bf8 {[%emt 0:1:42]} 22. Bxf8 {[%emt 0:0:2]} Rxf8 {[%emt 0:0:0]} 23. Qf3 {[%emt 0:0:10]} Qe7 {[%emt 0:0:29]} 24. Bxd5 {[%emt 0:1:21]} Nxd5 {[%emt 0:0:1]} 25. Qxd5 {[%emt 0:0:1]} Qxg5 {[%emt 0:0:2]} 26. Qxd6 {[%emt 0:0:1]} Rfe8 {[%emt 0:0:37]} 27. Qc6 {[%emt 0:0:48]} a5 {[%emt 0:0:0]} 28. g3 {[%emt 0:0:8]} Kg7 {[%emt 0:0:2]} 29. Rad1 {[%emt 0:0:13]} Qf5 {[%emt 0:0:23]} 30. Re3 {[%emt 0:2:17]} Rac8 {[%emt 0:0:20]} 31. Qd5 {[%emt 0:0:2]
} Rcd8 {[%emt 0:0:9]} 32. Qxd8 {[%emt 0:0:5]} Rxd8 {[%emt 0:0:0]} 33. Rxd8 {[%emt 0:0:1]} Qb1+ {[%emt 0:0:2]} 34. Kg2 {[%emt 0:0:2]
} Qxa2 {[%emt 0:0:3]} 35. Rxe5 {[%emt 0:0:29]} Qxb3 {[%emt 0:0:4]} 36. Rxa5 {[%emt 0:0:1]} Qe6 {[%emt 0:0:27]} 37. Rd1 {[%emt 0:0:50]} Qe4+ {[%emt 0:0:3]
} 38. Kg1 {[%emt 0:0:2]} h5 {[%emt 0:0:18]} 39. h4 {[%emt 0:0:0]} Qe2 {[%emt 0:0:2]} 40. Rda1 {[%emt 0:0:5]} Qe4 {[%emt 0:0:28]} 41. R5a4 {[%emt 0:0:8]} Qe5 {[%emt 0:0:2]} 42. Ra7 {[%emt 0:0:20]} Kg8 {[%emt 0:0:4]
} 43. Rb1 {[%emt 0:1:4]} Qe4 {[%emt 0:0:10]} 44. Rb8+ {[%emt 0:1:24]
} Kg7 {[%emt 0:0:11]} 45. Rbb7 {[%emt 0:0:2]} Qe1+ {[%emt 0:0:0]} 46. Kg2 {[%emt 0:0:2]} Qe4+ {[%emt 0:0:2]} 47. Kh2 {[%emt 0:0:1]} Qf3 {[%emt 0:0:24]} 48. Rxf7+ {[%emt 0:0:5]} Qxf7 {[%emt 0:0:2]} 49. Rxf7+ {[%emt 0:0:1]} Kxf7 {[%emt 0:0:2]} 50. Kg2 {[%emt 0:0:7]} Ke6 {[%emt 0:0:0]} 51. Kf3 {[%emt 0:0:7]} Ke5 {[%emt 0:0:10]} 52. g4 {[%emt 0:0:41]} hxg4+ {[%emt 0:0:5]} 53. Kxg4 {[%emt 0:0:1]} Kf6 {[%emt 0:0:14]} 54. Kf4 {[%emt 0:0:1]
} Ke6 {[%emt 0:0:5]} 55. Kg5 {[%emt 0:0:2]} Kf7 {[%emt 0:0:0]} 56. h5 {[%emt 0:0:5]} gxh5 {[%emt 0:0:2]} 57. Kxh5 {[%emt 0:0:1]} Kf6 {[%emt 0:0:2]} 58. Kg4 {[%emt 0:0:2]} Ke5 {[%emt 0:0:23]} 59. Kg5 {[%emt 0:0:5]
} Ke4 {[%emt 0:0:2]} 60. f4 {[%emt 0:0:2]} 1-0

[Event "FIDE World Rapid-ch Open 2018"]
[White "Kamsky, Gata"]
[Black "Sychev, Klementy"]
[Site "St. Petersburg"]
[Round "1.12"]
[Annotator "ChessBase"]
[Result "1-0"]
[Date "2018.12.26"]
[WhiteElo "2666"]
[BlackElo "2537"]
[PlyCount "87"]
[TimeControl "900+10"]

1. e4 {[%emt 0:0:0]} e5 {[%emt 0:0:35]} 2. Nf3 {[%emt 0:0:0]} Nc6 {[%emt 0:0:2]
} 3. Bb5 {[%emt 0:0:2]} a6 {[%emt 0:0:1]} 4. Ba4 {[%emt 0:0:0]} d6 {[%emt 0:0:1]} 5. c3 {[%emt 0:1:6]} f5 {[%emt 0:0:49]} 6. exf5 {[%emt 0:0:28]
} Bxf5 {[%emt 0:0:3]} 7. 0-0 {[%emt 0:0:4]} Bd3 {[%emt 0:0:0]} 8. Re1 {[%emt 0:0:3]} Be7 {[%emt 0:0:1]} 9. Bc2 {[%emt 0:0:16]} Bxc2 {[%emt 0:0:16]} 10. Qxc2 {[%emt 0:0:2]} Nf6 {[%emt 0:1:46]} 11. d4 {[%emt 0:0:5]
} e4 {[%emt 0:0:1]} 12. Ng5 {[%emt 0:4:56]} d5 {[%emt 0:0:2]
} 13. Nd2 {[%emt 0:0:5]} Nh5 {[%emt 0:4:45]} 14. Ndxe4 {[%emt 0:3:42]} dxe4 {[%emt 0:0:4]} 15. Qxe4 {[%emt 0:0:8]} Nf6 {[%emt 0:0:29]} 16. Qc2 {[%emt 0:0:50]
} Qd7 {[%emt 0:6:44]} 17. Ne6 {[%emt 0:0:7]} Kf7 {[%emt 0:0:0]} 18. Bf4 {[%emt 0:1:14]} Rhc8 {[%emt 0:0:39]} 19. Qb3 {[%emt 0:1:21]} Qd5 {[%emt 0:0:28]} 20. Nxc7 {[%emt 0:0:51]} Qxb3 {[%emt 0:0:2]} 21. axb3 {[%emt 0:0:2]
} Ra7 {[%emt 0:0:8]} 22. d5 {[%emt 0:0:6]} Nh5 {[%emt 0:0:0]} 23. dxc6 {[%emt 0:0:20]} Nxf4 {[%emt 0:0:3]} 24. Nb5 {[%emt 0:0:2]} axb5 25. Rxa7 {[%emt 0:0:5]} Rxc6 {[%emt 0:0:38]} 26. Rxb7 {[%emt 0:0:3]} Ne6 {[%emt 0:0:12]} 27. Rxb5 {[%emt 0:0:10]} Rd6 {[%emt 0:0:1]} 28. g3 {[%emt 0:0:19]
} Bf6 {[%emt 0:0:11]} 29. Re2 {[%emt 0:0:16]} g5 {[%emt 0:0:0]} 30. h3 {[%emt 0:0:3]} h5 {[%emt 0:0:2]} 31. Kg2 {[%emt 0:0:4]} Kg6 {[%emt 0:0:1]
} 32. b4 {[%emt 0:0:8]} h4 {[%emt 0:0:3]} 33. Ra5 {[%emt 0:0:0]} hxg3 {[%emt 0:0:31]} 34. fxg3 {[%emt 0:0:1]} Ng7 {[%emt 0:0:2]} 35. b5 {[%emt 0:0:6]} Nf5 {[%emt 0:0:5]} 36. Ra6 {[%emt 0:0:3]} Rd3 {[%emt 0:0:2]
} 37. Ree6 {[%emt 0:0:5]} Ne3+ {[%emt 0:0:21]} 38. Kf2 {[%emt 0:0:4]
} Nd5 {[%emt 0:0:16]} 39. c4 {[%emt 0:0:3]} Kf5 {[%emt 0:0:0]} 40. cxd5 {[%emt 0:0:4]} Bd4+ {[%emt 0:0:1]} 41. Kg2 {[%emt 0:0:56]} Rd2+ {[%emt 0:0:2]} 42. Kf1 {[%emt 0:0:2]} Rxb2 {[%emt 0:0:3]} 43. Ra4 {[%emt 0:0:17]
} Rb1+ {[%emt 0:0:39]} 44. Ke2 {[%emt 0:0:2]} 1-0

[Event "FIDE World Rapid-ch Open 2018"]
[White "Rechlis, Gad"]
[Black "Svidler, Peter"]
[Site "St. Petersburg"]
[Round "1.13"]
[Annotator "ChessBase"]
[Result "0-1"]
[Date "2018.12.26"]
[WhiteElo "2521"]
[BlackElo "2737"]
[PlyCount "66"]
[TimeControl "900+10"]

1. e4 {[%emt 0:2:54]} c5 {[%emt 0:0:0]} 2. Nc3 {[%emt 0:0:3]} g6 {[%emt 0:0:0]} 3. f4 {[%emt 0:0:14]} Bg7 {[%emt 0:0:5]} 4. Nf3 {[%emt 0:0:1]} Nc6 {[%emt 0:0:13]} 5. g3 {[%emt 0:0:24]} e6 {[%emt 0:2:0]} 6. e5 {[%emt 0:0:0]} d6 {[%emt 0:0:25]} 7. Ne4 {[%emt 0:2:20]} dxe5 {[%emt 0:0:20]} 8. fxe5 {[%emt 0:0:1]} Nxe5 {[%emt 0:0:30]} 9. Nxe5 {[%emt 0:2:28]} Bxe5 {[%emt 0:0:0]} 10. Bb5+ {[%emt 0:0:1]} Kf8 {[%emt 0:2:21]} 11. Qf3 {[%emt 0:0:16]} Kg7 {[%emt 0:1:9]} 12. Nxc5 {[%emt 0:2:55]} Qb6 {[%emt 0:2:9]} 13. Qe3 {[%emt 0:0:5]
} Bd6 {[%emt 0:0:15]} 14. b4 {[%emt 0:0:5]} e5 {[%emt 0:0:54]
} 15. Bb2 {[%emt 0:0:48]} f6 {[%emt 0:0:10]} 16. a4 {[%emt 0:0:59]} Ne7 {[%emt 0:0:23]
} 17. 0-0 {[%emt 0:0:16]} Rf8 {[%emt 0:1:5]} 18. Rf2 {[%emt 0:0:0]} Nd5 {[%emt 0:0:49]} 19. Qe4 {[%emt 0:0:34]} Nxb4 {[%emt 0:0:21]} 20. d4 {[%emt 0:0:21]} exd4 {[%emt 0:1:14]} 21. Nb3 {[%emt 0:0:28]} Bf5 {[%emt 0:0:29]
} 22. Rxf5 {[%emt 0:0:2]} gxf5 {[%emt 0:0:2]} 23. Qxf5 {[%emt 0:0:1]
} Be5 {[%emt 0:0:25]} 24. Ba3 {[%emt 0:0:21]} d3+ {[%emt 0:0:0]} 25. Kh1 {[%emt 0:0:3]} a6 {[%emt 0:0:14]} 26. Bxb4 {[%emt 0:0:32]} axb5 {[%emt 0:0:7]} 27. Bxf8+ {[%emt 0:0:20]} Rxf8 {[%emt 0:0:2]} 28. Rd1 {[%emt 0:0:7]} Qc6+ {[%emt 0:0:13]} 29. Kg1 {[%emt 0:0:1]} bxa4 {[%emt 0:0:0]} 30. Rxd3 {[%emt 0:0:3]} axb3 {[%emt 0:0:34]} 31. Rd7+ {[%emt 0:0:0]} Rf7 {[%emt 0:0:1]} 32. Qg4+ {[%emt 0:0:22]} Kf8 {[%emt 0:0:5]} 33. Qb4+ {[%emt 0:0:8]} Ke8 {[%emt 0:0:10]} 0-1

[Event "FIDE World Rapid-ch Open 2018"]
[White "Le, Quang Liem"]
[Black "Popov, Ivan"]
[Site "St. Petersburg"]
[Round "1.14"]
[Annotator "ChessBase"]
[Result "1/2-1/2"]
[Date "2018.12.26"]
[WhiteElo "2714"]
[BlackElo "2592"]
[PlyCount "42"]
[TimeControl "900+10"]

1. c4 {[%emt 0:0:0]} e5 {[%emt 0:0:0]} 2. d3 {[%emt 0:0:0]} Bb4+ {[%emt 0:0:11]
} 3. Nd2 {[%emt 0:0:0]} c5 {[%emt 0:0:7]} 4. a3 {[%emt 0:0:0]} Ba5 {[%emt 0:0:8]} 5. g3 {[%emt 0:0:12]} Nc6 {[%emt 0:0:16]} 6. Bg2 {[%emt 0:0:3]
} Nge7 {[%emt 0:0:24]} 7. Ngf3 {[%emt 0:0:8]} 0-0 {[%emt 0:0:0]} 8. 0-0 {[%emt 0:0:5]} d6 {[%emt 0:0:3]} 9. b4 {[%emt 0:1:28]} cxb4 {[%emt 0:0:10]
} 10. Nb3 {[%emt 0:0:2]} Bc7 {[%emt 0:1:24]} 11. axb4 {[%emt 0:0:18]
} Nxb4 {[%emt 0:0:3]} 12. Ba3 {[%emt 0:0:2]} Nbc6 {[%emt 0:0:0]} 13. Nfd2 {[%emt 0:1:25]} Bg4 {[%emt 0:1:44]} 14. h3 {[%emt 0:0:5]} Be6 {[%emt 0:0:52]} 15. e3 {[%emt 0:0:50]} Rb8 {[%emt 0:2:11]} 16. d4 {[%emt 0:1:12]
} exd4 {[%emt 0:0:33]} 17. Nxd4 {[%emt 0:0:31]} Nxd4 {[%emt 0:0:0]} 18. exd4 {[%emt 0:0:3]} b5 {[%emt 0:3:13]} 19. d5 {[%emt 0:0:28]} Bd7 {[%emt 0:0:3]} 20. cxb5 {[%emt 0:1:51]} Bxb5 {[%emt 0:0:28]} 21. Re1 {[%emt 0:0:2]
} Ng6 {[%emt 0:0:43]} 1/2-1/2

[Event "FIDE World Rapid-ch Open 2018"]
[White "Zablotsky, Sergei"]
[Black "Korobov, Anton"]
[Site "St. Petersburg"]
[Round "1.15"]
[Annotator "ChessBase"]
[Result "0-1"]
[Date "2018.12.26"]
[WhiteElo "2511"]
[BlackElo "2698"]
[PlyCount "106"]
[TimeControl "900+10"]

1. e4 {[%emt 0:0:0]} c5 {[%emt 0:0:0]} 2. Nf3 {[%emt 0:0:2]} d6 {[%emt 0:0:0]} 3. d4 {[%emt 0:0:35]} cxd4 {[%emt 0:0:0]} 4. Nxd4 {[%emt 0:0:2]} Nf6 {[%emt 0:0:2]} 5. Nc3 {[%emt 0:0:2]} a6 {[%emt 0:0:3]} 6. h3 {[%emt 0:0:34]
} Nc6 {[%emt 0:0:5]} 7. g4 {[%emt 0:0:12]} Qb6 {[%emt 0:0:3]
} 8. Nb3 {[%emt 0:0:33]} e6 {[%emt 0:0:3]} 9. Bg2 {[%emt 0:0:7]} Be7 {[%emt 0:0:49]
} 10. 0-0 {[%emt 0:1:26]} Qc7 {[%emt 0:0:10]} 11. f4 {[%emt 0:0:0]} b5 {[%emt 0:1:11]} 12. Be3 {[%emt 0:2:31]} Bb7 {[%emt 0:0:30]} 13. g5 {[%emt 0:0:44]} Nd7 {[%emt 0:0:3]} 14. a4 {[%emt 0:0:5]} b4 {[%emt 0:0:0]} 15. Ne2 {[%emt 0:0:4]} 0-0 {[%emt 0:2:5]} 16. a5 {[%emt 0:0:28]} Rae8 {[%emt 0:0:23]} 17. Qd2 {[%emt 0:0:8]} Nc5 {[%emt 0:0:44]} 18. Ned4 {[%emt 0:1:35]
} Nxd4 {[%emt 0:0:44]} 19. Qxd4 {[%emt 0:0:39]} e5 {[%emt 0:0:0]} 20. Qxb4 {[%emt 0:0:7]} exf4 {[%emt 0:0:5]} 21. Bxf4 {[%emt 0:0:14]} Ne6 {[%emt 0:0:2]} 22. Bg3 {[%emt 0:3:51]} Ba8 {[%emt 0:1:16]} 23. Nd4 {[%emt 0:1:44]
} Rb8 {[%emt 0:1:28]} 24. Nxe6 {[%emt 0:0:23]} fxe6 {[%emt 0:0:0]} 25. Rxf8+ {[%emt 0:0:5]} Bxf8 {[%emt 0:0:3]} 26. Qc3 {[%emt 0:0:0]} Qxc3 {[%emt 0:0:52]} 27. bxc3 {[%emt 0:0:1]} Rc8 {[%emt 0:0:3]} 28. Rd1 {[%emt 0:1:46]} e5 {[%emt 0:0:23]} 29. Rb1 {[%emt 0:0:4]} Rxc3 {[%emt 0:0:30]
} 30. Rb8 {[%emt 0:0:3]} Bc6 {[%emt 0:1:8]} 31. g6 {[%emt 0:0:0]} hxg6 {[%emt 0:0:16]} 32. Bh4 {[%emt 0:0:2]} Kf7 {[%emt 0:0:11]} 33. Rb6 {[%emt 0:0:47]} d5 {[%emt 0:2:14]} 34. Rb3 {[%emt 0:0:46]} Rxb3 {[%emt 0:1:29]
} 35. cxb3 {[%emt 0:0:2]} dxe4 {[%emt 0:0:1]} 36. Bf1 {[%emt 0:0:11]
} Bc5+ {[%emt 0:0:1]} 37. Kh2 {[%emt 0:0:6]} Bb7 {[%emt 0:0:0]} 38. Bc4+ {[%emt 0:0:2]} Ke8 {[%emt 0:0:2]} 39. Be1 {[%emt 0:0:11]} Ke7 {[%emt 0:0:46]} 40. b4 {[%emt 0:0:2]} Bd4 {[%emt 0:0:1]} 41. b5 {[%emt 0:0:2]
} axb5 {[%emt 0:0:1]} 42. Bxb5 {[%emt 0:0:14]} g5 {[%emt 0:0:0]} 43. Kg3 {[%emt 0:0:28]} e3 {[%emt 0:0:7]} 44. Be2 {[%emt 0:0:21]} Kd6 {[%emt 0:0:39]} 45. a6 {[%emt 0:0:5]} Bd5 {[%emt 0:0:6]} 46. Bb4+ {[%emt 0:0:8]
} Ke6 {[%emt 0:0:12]} 47. Bg4+ {[%emt 0:0:16]} Kf6 {[%emt 0:0:0]} 48. Bc8 {[%emt 0:0:5]} e2 {[%emt 0:0:19]} 49. Bb7 {[%emt 0:0:5]} Bc4 {[%emt 0:0:24]} 50. Kf3 {[%emt 0:0:19]} Bd3 {[%emt 0:0:1]} 51. Be1 {[%emt 0:0:13]
} Ke6 {[%emt 0:0:20]} 52. Kg2 {[%emt 0:0:11]} Kf5 {[%emt 0:0:0]} 53. Bc8+ {[%emt 0:0:5]} Kf4 {[%emt 0:0:19]} 0-1

[Event "FIDE World Rapid-ch Open 2018"]
[White "Potapov, Pavel"]
[Black "Mamedov, Rauf"]
[Site "St. Petersburg"]
[Round "1.17"]
[Annotator "ChessBase"]
[Result "1/2-1/2"]
[Date "2018.12.26"]
[WhiteElo "2516"]
[BlackElo "2703"]
[PlyCount "111"]
[TimeControl "900+10"]

1. e4 c5 2. c3 Nf6 3. e5 Nd5 4. Bc4 Nb6 5. Bb3 Nc6 6. Nf3 d5 7. exd6 Qxd6 8. 0-0 Be6 9. Bxe6 Qxe6 10. d4 cxd4 11. cxd4 Qd7 12. Nc3 e6 13. Bg5 h6 14. Bh4 Bb4 15. Qb3 0-0 16. Rfd1 Bxc3 17. bxc3 Rac8 18. a4 Qd5 19. Qxd5 exd5 20. a5 Nc4 21. a6 b6 22. Bg3 f6 23. Ne1 Kf7 24. Nd3 g5 25. h4 Rfe8 26. Re1 Rxe1+ 27. Rxe1 Na3 28. hxg5 hxg5 29. f4 g4 30. Nf2 Rg8 31. Kf1 Ne7 32. Nd3 Nf5 33. Bf2 g3 34. Bg1 Nb5 35. Nb4 Rd8 36. Rc1 Ne7 37. Ke2 Nd6 38. Kd3 Rh8 39. Be3 Rh2 40. Rg1 Ke6 41. Bd2 Ne4 42. Be1 Ng6 43. f5+ Kxf5 44. Nxd5 Nf2+ 45. Bxf2 gxf2 46. Rf1 Ke6 47. Nc7+ Kd7 48. Nb5 Rxg2 49. Nxa7 Nf4+ 50. Ke4 Nh3 51. Kf3 Rg1 52. Ke2 Rg5 53. Ra1 Rg1 54. Rf1 Rg5 55. Ra1 Rg1 56. Rf1 1/2-1/2

[Event "FIDE World Rapid-ch Open 2018"]
[White "Tomashevsky, Evgeny"]
[Black "Reshetnikov, Alexey"]
[Site "St. Petersburg"]
[Round "1.18"]
[Annotator "ChessBase"]
[Result "1/2-1/2"]
[Date "2018.12.26"]
[WhiteElo "2705"]
[BlackElo "2492"]
[PlyCount "85"]
[TimeControl "900+10"]

1. d4 {[%emt 0:0:0]} d5 {[%emt 0:0:0]} 2. c4 {[%emt 0:0:0]} c6 {[%emt 0:0:0]} 3. Nf3 {[%emt 0:0:0]} Nf6 {[%emt 0:0:0]} 4. e3 {[%emt 0:0:24]} Bf5 {[%emt 0:0:40]} 5. Nc3 {[%emt 0:0:6]} e6 {[%emt 0:0:3]} 6. Nh4 {[%emt 0:0:0]} Be4 {[%emt 0:0:4]} 7. f3 {[%emt 0:0:25]} Bg6 {[%emt 0:0:2]} 8. Bd2 {[%emt 0:0:10]} Bd6 {[%emt 0:0:30]} 9. g3 {[%emt 0:2:1]} Nbd7 {[%emt 0:0:0]} 10. Qb3 {[%emt 0:0:49]} Qc7 {[%emt 0:0:36]} 11. Rc1 {[%emt 0:1:20]} a6 {[%emt 0:0:51]} 12. cxd5 {[%emt 0:2:20]} exd5 {[%emt 0:0:9]} 13. Kf2 {[%emt 0:0:19]
} 0-0 {[%emt 0:0:44]} 14. Kg2 {[%emt 0:0:22]} Rfe8 {[%emt 0:0:0]} 15. Nxg6 {[%emt 0:0:8]} hxg6 {[%emt 0:0:3]} 16. Bd3 {[%emt 0:0:29]} b5 {[%emt 0:6:5]} 17. a4 {[%emt 0:3:13]} b4 {[%emt 0:1:19]} 18. Ne2 {[%emt 0:0:2]
} Qb7 {[%emt 0:0:51]} 19. Qd1 {[%emt 0:1:5]} c5 {[%emt 0:0:0]} 20. b3 {[%emt 0:0:50]} Rac8 21. Rc2 Nf8 {[%emt 0:2:9]} 22. Qb1 {[%emt 0:2:14]
} cxd4 {[%emt 0:0:24]} 23. Rxc8 {[%emt 0:0:22]} Rxc8 {[%emt 0:0:0]} 24. Nxd4 {[%emt 0:0:13]} Be5 {[%emt 0:0:8]} 25. Rc1 {[%emt 0:0:6]} Bxd4 {[%emt 0:0:36]} 26. Rxc8 {[%emt 0:0:7]} Qxc8 {[%emt 0:0:5]} 27. exd4 {[%emt 0:0:2]} a5 {[%emt 0:0:39]} 28. Qc1 {[%emt 0:0:54]} Qxc1 {[%emt 0:0:0]} 29. Bxc1 {[%emt 0:0:1]} Ne6 {[%emt 0:0:1]} 30. Be3 {[%emt 0:0:1]} Ne8 {[%emt 0:0:14]} 31. h4 {[%emt 0:0:11]} Nd6 {[%emt 0:0:20]} 32. g4 {[%emt 0:0:7]
} Kf8 {[%emt 0:0:49]} 33. Kf2 {[%emt 0:0:23]} Ke7 {[%emt 0:0:0]} 34. Ke2 {[%emt 0:0:6]} f5 {[%emt 0:0:29]} 35. Kd2 {[%emt 0:0:19]} f4 {[%emt 0:0:17]
} 36. Bf2 {[%emt 0:0:12]} g5 {[%emt 0:0:3]} 37. hxg5 {[%emt 0:0:0]} Nxg5 {[%emt 0:0:1]} 38. Bh4 {[%emt 0:0:2]} Ndf7 {[%emt 0:0:0]} 39. Bf5 {[%emt 0:1:15]} Kd6 {[%emt 0:0:35]} 40. Ke2 {[%emt 0:0:4]} Ne6 {[%emt 0:0:2]
} 41. Bxe6 {[%emt 0:0:16]} Kxe6 {[%emt 0:0:2]} 42. Kd3 {[%emt 0:0:5]
} g5 {[%emt 0:0:2]} 43. Be1 {[%emt 0:0:3]} 1/2-1/2